fUST/lending_fUST_20241102
["ID","MTS","AMOUNT","RATE_DAILY","PERIOD"]
[341162258,1730490649694,-14142.8,0.00033277,7]
[341162259,1730490649703,-500.0,0.00033408,4]
[341162260,1730490649713,-500.0,0.00033408,4]
[341162261,1730490649723,-500.0,0.00033408,4]
[341162262,1730490649822,-500.0,0.00033408,4]
[341162263,1730490649832,-500.0,0.00033408,4]
[341162264,1730490649842,-500.0,0.00033408,4]
[341162265,1730490649851,-500.0,0.00033408,4]
[341162266,1730490649861,-507.69302859,0.00033408,4]
[341162267,1730490649870,-503.41998529,0.00033408,4]
[341162268,1730490649881,-500.0,0.00033408,4]
[341162269,1730490649891,-500.0,0.00033408,4]
[341162270,1730490649901,-500.0,0.00033408,4]
[341162271,1730490649911,-500.0,0.00033408,4]
[341162272,1730490649920,-500.0,0.00033408,4]
[341162273,1730490649930,-500.0,0.00033408,4]
[341162274,1730490649939,-500.0,0.00033408,4]
[341162275,1730490649948,-500.0,0.00033408,4]
[341162276,1730490649958,-500.0,0.00033408,4]
[341162277,1730490649967,-503.21239165,0.00033408,4]
[341162278,1730490649977,-551.31167863,0.00033408,4]
[341162279,1730490649987,-500.0,0.00033408,4]
[341162280,1730490649996,-500.0,0.00033408,4]
[341162281,1730490650006,-500.0,0.00033408,4]
[341162282,1730490650017,-590.81175406,0.00033408,4]
[341162283,1730490650027,-500.0,0.00033408,4]
[341162284,1730490650036,-500.00000072,0.00033408,4]
[341162285,1730490650045,-500.0,0.00033408,4]
[341162286,1730490650055,-500.0,0.00033408,4]
[341162287,1730490650065,-500.0,0.00033408,4]
[341162288,1730490650075,-500.0,0.00033408,4]
[341162289,1730490650085,-502.8780655,0.00033408,4]
[341162290,1730490650094,-500.0,0.00033408,4]
[341162291,1730490650104,-500.0,0.00033408,4]
[341162292,1730490650113,-500.0,0.00033408,4]
[341162293,1730490650122,-500.0,0.00033408,4]
[341162294,1730490650132,-500.0,0.00033408,4]
[341162295,1730490650141,-500.0,0.00033408,4]
[341162296,1730490650151,-500.0,0.00033408,4]
[341162297,1730490650160,-500.0,0.00033408,4]
[341162298,1730490650169,-500.0,0.00033408,4]
[341162299,1730490650179,-500.0,0.00033408,4]
[341162300,1730490650188,-406.63213066,0.00033408,4]
[341162301,1730490650197,-513.90947329,0.00033408,4]
[341162302,1730490650207,-500.0,0.00033408,4]
[341162303,1730490650216,-504.3921938,0.00033408,4]
[341162304,1730490650226,-500.0,0.00033408,4]
[341162305,1730490650235,-500.0,0.00033408,4]
[341162306,1730490650245,-542.68759196,0.00033408,4]
[341162307,1730490650255,-500.0,0.00033408,4]
[341162308,1730490650264,-526.59999904,0.00033408,4]
[341162309,1730490650276,-500.0,0.00033408,4]
[341162310,1730490650285,-500.0,0.00033408,4]
[341162311,1730490650295,-500.0,0.00033408,4]
[341162312,1730490650305,-500.0,0.00033408,4]
[341162313,1730490650315,-613.34058295,0.00033408,4]
[341162314,1730490650325,-507.91930644,0.00033408,4]
[341162315,1730490650335,-500.0,0.00033408,4]
[341162316,1730490650344,-500.0,0.00033408,4]
[341162317,1730490650354,-500.57155544,0.00033408,4]
[341162318,1730490650363,-502.12842486,0.00033408,4]
[341162319,1730490650373,-500.0,0.00033408,4]
[341162320,1730490650383,-500.0,0.00033408,4]
[341162321,1730490650392,-501.85095613,0.00033408,4]
[341162322,1730490650402,-500.0,0.00033408,4]
[341162323,1730490650412,-500.0,0.00033408,4]
[341162324,1730490650421,-500.0,0.00033408,4]
[341162325,1730490650432,-500.0,0.00033408,4]
[341162326,1730490650441,-500.0,0.00033408,4]
[341162327,1730490650450,-500.0,0.00033408,4]
[341162328,1730490650460,-315.33042563,0.00033408,4]
[341162329,1730490650470,-527.72347859,0.00033408,4]
[341162330,1730490650480,-532.10513746,0.00033408,4]
[341162331,1730490650490,-500.0,0.00033408,4]
[341162332,1730490650499,-500.0,0.00033408,4]
[341162333,1730490650509,-500.0,0.00033408,4]
[341162334,1730490650520,-500.0,0.00033408,4]
[341162335,1730490650529,-502.92542983,0.00033408,4]
[341162336,1730490650542,-513.5411879,0.00033408,4]
[341162337,1730490650552,-500.0,0.00033408,4]
[341162338,1730490650562,-500.0,0.00033408,4]
[341162339,1730490650571,-500.0,0.00033408,4]
[341162340,1730490650582,-500.0,0.00033408,4]
[341162341,1730490650592,-501.79378426,0.00033408,4]
[341162342,1730490650601,-500.0,0.00033408,4]
[341162343,1730490650611,-500.0,0.00033408,4]
[341162344,1730490650620,-519.24264338,0.00033408,4]
[341162345,1730490650630,-500.0,0.00033408,4]
[341162346,1730490650639,-500.0,0.00033408,4]
[341162347,1730490650650,-500.0,0.00033408,4]
[341162348,1730490650659,-500.0,0.00033408,4]
[341162349,1730490650669,-500.0,0.00033408,4]
[341162350,1730490650678,-500.0,0.00033408,4]
[341162351,1730490650688,-500.0,0.00033408,4]
[341162352,1730490650697,-500.0,0.00033408,4]
[341162353,1730490650706,-516.99004459,0.00033408,4]
[341162354,1730490650715,-500.0,0.00033408,4]
[341162355,1730490650725,-500.0,0.00033408,4]
[341162356,1730490650735,-500.0,0.00033408,4]
[341162357,1730490650744,-500.0,0.00033408,4]
[341162358,1730490650754,-501.41793541,0.00033408,4]
[341162359,1730490650763,-501.57654143,0.00033408,4]
[341162360,1730490650775,-500.81312293,0.00033408,4]
[341162361,1730490650784,-500.0,0.00033408,4]
[341162362,1730490650792,-502.76298619,0.00033408,4]
[341162363,1730490650802,-500.0,0.00033408,4]
[341162364,1730490650812,-500.0,0.00033408,4]
[341162365,1730490650822,-500.0,0.00033408,4]
[341162366,1730490650831,-503.37673088,0.00033408,4]
[341162367,1730490650841,-500.0,0.00033408,4]
[341162368,1730490650850,-501.12035207,0.00033408,4]
[341162369,1730490650859,-500.0,0.00033408,4]
[341162370,1730490650869,-500.0,0.00033408,4]
[341162371,1730490650879,-500.0,0.00033408,4]
[341162372,1730490650889,-500.0,0.00033408,4]
[341162373,1730490650899,-501.33652771,0.00033408,4]
[341162374,1730490650908,-500.98864187,0.00033408,4]
[341162375,1730490650917,-301.19332351,0.00033408,4]
[341162376,1730490650927,-500.0,0.00033408,4]
[341162377,1730490650937,-500.0,0.00033408,4]
[341162378,1730490650947,-500.0,0.00033408,4]
[341162379,1730490650956,-1033.82,0.00033408,4]
[341162380,1730490650966,-500.0,0.00033408,4]
[341162381,1730490650976,-500.0,0.00033408,4]
[341162382,1730490650986,-500.68364836,0.00033408,4]
[341162383,1730490650995,-376.46255435,0.00033408,4]
[341162384,1730490651005,-500.0,0.00033408,4]
[341162385,1730490651015,-500.0,0.00033408,4]
[341162386,1730490651026,-500.0,0.00033408,4]
[341162387,1730490651035,-500.0,0.00033408,4]
[341162388,1730490651044,-583.51,0.00033408,4]
[341162389,1730490651054,-500.0,0.00033408,4]
[341162390,1730490651064,-500.0,0.00033408,4]
[341162391,1730490651073,-500.0,0.00033408,4]
[341162392,1730490651083,-500.0,0.00033408,4]
[341162393,1730490651092,-500.0,0.00033408,4]
[341162394,1730490651102,-500.0,0.00033408,4]
[341162395,1730490651111,-500.0,0.00033408,4]
[341162396,1730490651121,-209.12780655,0.00033408,4]
[341162397,1730490651419,-290.87219345,0.00033408,4]
[341162398,1730490651428,-500.0,0.00033408,4]
[341162399,1730490651438,-500.0,0.00033408,4]
[341162400,1730490651447,-500.0,0.00033408,4]
[341162401,1730490651457,-500.0,0.00033408,4]
[341162402,1730490651466,-500.0,0.00033408,4]
[341162403,1730490651475,-500.0,0.00033408,4]
[341162404,1730490651485,-500.0,0.00033408,4]
[341162405,1730490651494,-500.0,0.00033408,4]
[341162406,1730490651504,-500.0,0.00033408,4]
[341162407,1730490651514,-500.0,0.00033408,4]
[341162408,1730490651525,-500.0,0.00033408,4]
[341162409,1730490651535,-500.0,0.00033408,4]
[341162410,1730490651548,-500.0,0.00033408,4]
[341162411,1730490651557,-527.38638977,0.00033408,4]
[341162412,1730490651567,-500.0,0.00033408,4]
[341162413,1730490651576,-500.0,0.00033408,4]
[341162414,1730490651587,-500.0,0.00033408,4]
[341162415,1730490651597,-500.0,0.00033408,4]
[341162416,1730490651606,-500.0,0.00033408,4]
[341162417,1730490651616,-500.0,0.00033408,4]
[341162418,1730490651626,-500.0,0.00033408,4]
[341162419,1730490651635,-500.0,0.00033408,4]
[341162420,1730490651644,-500.0,0.00033408,4]
[341162421,1730490651653,-500.0,0.00033408,4]
[341162422,1730490651662,-500.0,0.00033408,4]
[341162423,1730490651671,-500.0,0.00033408,4]
[341162424,1730490651681,-509.29501686,0.00033408,4]
[341162425,1730490651690,-264.98084242,0.00033408,4]
[341162426,1730490651699,-500.0,0.00033408,4]
[341162427,1730490651709,-500.0,0.00033408,4]
[341162428,1730490651719,-500.0,0.00033408,4]
[341162429,1730490651727,-280.86284261,0.00033408,4]
[341162430,1730490651738,-635.28919219,0.00033408,4]
[341162431,1730490651749,-500.0,0.00033408,4]
[341162432,1730490651759,-505.73526019,0.00033408,4]
[341162433,1730490651773,-500.0,0.00033408,4]
[341162434,1730490651784,-500.0,0.00033408,4]
[341162435,1730490651794,-500.0,0.00033408,4]
[341162436,1730490651803,-500.0,0.00033408,4]
[341162437,1730490651812,-500.0,0.00033408,4]
[341162438,1730490651821,-500.0,0.00033408,4]
[341162439,1730490651831,-799.1,0.00033424,120]
[341162440,1730490651841,-598.3,0.00033424,4]
[341162441,1730490651852,-545.77,0.00033424,4]
[341162442,1730490651862,-634.86,0.00033424,4]
[341162443,1730490651873,-501.25,0.00033424,4]
[341162444,1730490651882,-500.0,0.00033424,4]
[341162445,1730490651892,-2480.8,0.00033424,4]
[341162446,1730490651901,-590.04,0.00033424,4]
[341162447,1730490651911,-2411.33,0.00033424,4]
[341162448,1730490651921,-874.71,0.00033424,4]
[341162449,1730490651932,-675.14,0.00033424,4]
[341162450,1730490651942,-576.7,0.00033424,4]
[341162451,1730490651952,-500.0,0.00033424,4]
[341162452,1730490651962,-3500.52,0.00033424,3]
[341162453,1730490651972,-1192.26,0.00033424,4]
[341162454,1730490651982,-623.12,0.00033424,4]
[341162455,1730490651992,-204.32188703,0.00033473,5]
[341162456,1730490652001,-500.0,0.00033473,5]
[341162457,1730490652010,-500.0,0.00033473,5]
[341162458,1730490652023,-500.0,0.00033473,5]
[341162459,1730490652033,-500.0,0.00033473,5]
[341162460,1730490652042,-500.65519333,0.00033473,5]
[341162461,1730490652054,-500.0,0.00033473,5]
[341162462,1730490652065,-304.21589277,0.00033473,5]
[341162463,1730490652075,-500.0,0.00033473,5]
[341162464,1730490652086,-316.65120727,0.00033473,5]
[341162465,1730490652096,-500.0,0.00033473,5]
[341162466,1730490652108,-500.0,0.00033473,5]
[341162467,1730490652118,-366.61533353,0.00033473,5]
[341162468,1730490652128,-500.0,0.00033473,5]
[341162469,1730490652137,-500.58155326,0.00033473,5]
[341162470,1730490652147,-500.0,0.00033473,5]
[341162471,1730490652157,-500.72829541,0.00033473,5]
[341162472,1730490652166,-500.0,0.00033473,5]
[341162473,1730490652176,-500.0,0.00033473,5]
[341162474,1730490652185,-500.0,0.00033682,4]
[341162475,1730490652195,-500.0,0.00033682,4]
[341162476,1730490652205,-1033.82,0.00033682,4]
[341162477,1730490652215,-500.0,0.00033682,4]
[341162478,1730490652225,-583.51,0.00033682,4]
[341162479,1730490652234,-500.0,0.00033682,4]
[341162480,1730490652243,-500.0,0.00033682,4]
[341162481,1730490652276,-500.0,0.00033682,4]
[341162482,1730490652288,-500.0,0.00033682,4]
[341162483,1730490652297,-368.61568258,0.00033682,4]
[341162484,1730490652306,-799.1,0.00033698,120]
[341162485,1730490652321,-598.3,0.00033698,4]
[341162486,1730490652334,-545.77,0.00033698,4]
[341162487,1730490652345,-634.86,0.00033698,4]
[341162488,1730490652356,-501.25,0.00033698,4]
[341162489,1730490652366,-500.0,0.00033698,4]
[341162490,1730490652376,-2480.8,0.00033698,4]
[341162491,1730490652387,-590.04,0.00033698,4]
[341162492,1730490652396,-2411.33,0.00033698,4]
[341162493,1730490652406,-874.71,0.00033698,4]
[341162494,1730490652416,-675.14,0.00033698,4]
[341162495,1730490652426,-576.7,0.00033698,4]
[341162496,1730490652436,-500.0,0.00033698,4]
[341162497,1730490652448,-3500.52,0.00033698,3]
[341162498,1730490652457,-1192.26,0.00033698,4]
[341162499,1730490652467,-623.12,0.00033698,4]
[341162500,1730490652478,-3000.0,0.000339,17]
[341162501,1730490652488,-3000.0,0.0003391,17]
[341162502,1730490652498,-3000.0,0.0003392,17]
[341162503,1730490652507,-3000.0,0.0003393,17]
[341162504,1730490652516,-3000.0,0.0003394,17]
[341162505,1730490652527,-3000.0,0.0003395,18]
[341162506,1730490652537,-500.0,0.00033956,4]
[341162507,1730490652550,-1033.82,0.00033956,4]
[341162508,1730490652560,-500.0,0.00033956,4]
[341162509,1730490652570,-583.51,0.00033956,4]
[341162510,1730490652582,-500.0,0.00033956,4]
[341162511,1730490652590,-500.0,0.00033956,4]
[341162512,1730490652599,-524.85803655,0.00033956,4]
[341162513,1730490652608,-3000.0,0.0003396,18]
[341162514,1730490652619,-3000.0,0.0003397,18]
[341162515,1730490652629,-799.1,0.00033972,120]
[341162516,1730490652639,-598.3,0.00033972,4]
[341162517,1730490652649,-545.77,0.00033972,4]
[341162518,1730490652661,-634.86,0.00033972,4]
[341162519,1730490652671,-501.25,0.00033972,4]
[341162520,1730490652681,-500.0,0.00033972,4]
[341162521,1730490652691,-2480.8,0.00033972,4]
[341162522,1730490652701,-590.04,0.00033972,4]
[341162523,1730490652710,-2411.33,0.00033972,4]
[341162524,1730490652720,-874.71,0.00033972,4]
[341162525,1730490652729,-675.14,0.00033972,4]
[341162526,1730490652738,-576.7,0.00033972,4]
[341162527,1730490652749,-500.0,0.00033972,4]
[341162528,1730490652760,-3500.52,0.00033972,3]
[341162529,1730490652770,-1192.26,0.00033972,4]
[341162530,1730490652780,-623.12,0.00033972,4]
[341162531,1730490652790,-3000.0,0.0003398,18]
[341162532,1730490652799,-3000.0,0.0003399,18]
[341162533,1730490652808,-3000.0,0.00034,18]
[341162534,1730490652818,-3000.0,0.0003401,18]
[341162535,1730490652827,-3000.0,0.0003402,18]
[341162536,1730490652837,-3000.0,0.0003403,18]
[341162537,1730490652846,-3000.0,0.0003404,18]
[341162538,1730490652856,-1500.0,0.00034047,5]
[341162539,1730490652866,-3000.0,0.0003405,18]
[341162540,1730490652876,-4006.233914,0.0003406,18]
[341162541,1730490652886,-500.0,0.0003423,4]
[341162542,1730490652895,-1033.82,0.0003423,4]
[341162543,1730490652905,-500.0,0.0003423,4]
[341162544,1730490652915,-583.51,0.0003423,4]
[341162545,1730490652925,-500.0,0.0003423,4]
[341162546,1730490652934,-500.0,0.0003423,4]
[341162547,1730490652944,-799.1,0.00034246,120]
[341162548,1730490652953,-598.3,0.00034246,4]
[341162549,1730490652964,-545.77,0.00034246,4]
[341162550,1730490652976,-634.86,0.00034246,4]
[341162551,1730490652987,-501.25,0.00034246,4]
[341162552,1730490652997,-500.0,0.00034246,4]
[341162553,1730490653006,-2480.8,0.00034246,4]
[341162554,1730490653016,-590.04,0.00034246,4]
[341162555,1730490653026,-2411.33,0.00034246,4]
[341162556,1730490653036,-874.71,0.00034246,4]
[341162557,1730490653046,-675.14,0.00034246,4]
[341162558,1730490653056,-576.7,0.00034246,4]
[341162559,1730490653067,-500.0,0.00034246,4]
[341162560,1730490653078,-3500.52,0.00034246,3]
[341162561,1730490653088,-1192.26,0.00034246,4]
[341162562,1730490653097,-623.12,0.00034246,4]
[341162563,1730490653106,-150.94,0.00034333,2]
[341162564,1730490653115,-528.0,0.00034333,2]
[341162565,1730490653124,-1144.0,0.00034333,2]
[341162566,1730490653134,-2394.0,0.00034333,2]
[341162567,1730490653144,-150.0,0.00034333,2]
[341162568,1730490653154,-354.39633744,0.00034424,2]
[341162569,1730490653164,-500.0,0.00034504,4]
[341162570,1730490653174,-1033.82,0.00034504,4]
[341162571,1730490653183,-500.0,0.00034504,4]
[341162572,1730490653192,-583.51,0.00034504,4]
[341162573,1730490653201,-500.0,0.00034504,4]
[341162574,1730490653211,-500.0,0.00034504,4]
[341162575,1730490653221,-799.1,0.0003452,120]
[341162576,1730490653230,-598.3,0.0003452,4]
[341162577,1730490653240,-545.77,0.0003452,4]
[341162578,1730490653250,-634.86,0.0003452,4]
[341162579,1730490653260,-501.25,0.0003452,4]
[341162580,1730490653271,-228.5027,0.0003452,4]
[341162581,1730490653281,-1739.11466046,0.0003452,4]
[341162583,1730490936195,173.110893,0.00013973,2]
[341162589,1730491528800,179.947408,0.00013973,2]
[341162590,1730491543131,-500.0,0.00030136,4]
[341162591,1730491543156,-500.0,0.00030136,4]
[341162592,1730491543178,-818.44,0.00030136,4]
[341162593,1730491543199,-500.0,0.00030136,4]
[341162594,1730491543221,-500.0,0.00030136,4]
[341162595,1730491543242,-340.73033275,0.00030136,4]
[341162596,1730491543263,-500.0,0.00030136,4]
[341162597,1730491543285,-233.49635127,0.0003041,4]
[341162598,1730491543305,-500.0,0.0003041,4]
[341162599,1730491543326,-818.44,0.0003041,4]
[341162600,1730491543347,-500.0,0.0003041,4]
[341162601,1730491543369,-500.0,0.0003041,4]
[341162602,1730491543390,-556.39,0.0003041,4]
[341162603,1730491543412,-1166.84,0.00030683,3]
[341162604,1730491543433,-500.0,0.00030683,4]
[341162605,1730491543455,-500.0,0.00030683,4]
[341162606,1730491543477,-5000.0,0.00030683,2]
[341162607,1730491543498,-500.0,0.00030683,4]
[341162608,1730491543519,-500.0,0.00030683,4]
[341162609,1730491543542,-500.0,0.00030683,4]
[341162610,1730491543564,-754.47,0.00030683,4]
[341162611,1730491543585,-500.0,0.00030683,4]
[341162612,1730491543606,-500.0,0.00030683,4]
[341162613,1730491543628,-500.0,0.00030683,4]
[341162614,1730491543650,-500.0,0.00030683,4]
[341162615,1730491543677,-803.78,0.00030683,4]
[341162616,1730491543700,-500.0,0.00030683,4]
[341162617,1730491543721,-500.0,0.00030684,4]
[341162618,1730491543742,-818.44,0.00030684,4]
[341162619,1730491543762,-500.0,0.00030684,4]
[341162620,1730491543783,-500.0,0.00030684,4]
[341162621,1730491543805,-1166.84,0.00030957,3]
[341162622,1730491543828,-500.0,0.00030957,4]
[341162623,1730491543849,-500.0,0.00030957,4]
[341162624,1730491543872,-500.0,0.00030957,4]
[341162625,1730491543896,-500.0,0.00030957,4]
[341162626,1730491543920,-500.0,0.00030957,4]
[341162627,1730491543946,-754.47,0.00030957,4]
[341162628,1730491543970,-500.0,0.00030957,4]
[341162629,1730491543993,-500.0,0.00030957,4]
[341162630,1730491544017,-500.0,0.00030957,4]
[341162631,1730491544039,-500.0,0.00030957,4]
[341162632,1730491544064,-803.78,0.00030957,4]
[341162633,1730491544087,-500.0,0.00030957,4]
[341162634,1730491544110,-500.0,0.00030958,4]
[341162635,1730491544132,-818.44,0.00030958,4]
[341162636,1730491544153,-500.0,0.00030958,4]
[341162637,1730491544174,-500.0,0.00030958,4]
[341162638,1730491544196,-151.88414466,0.00031131,2]
[341162639,1730491544220,-1166.84,0.00031231,3]
[341162640,1730491544242,-500.0,0.00031231,4]
[341162641,1730491544264,-500.0,0.00031231,4]
[341162642,1730491544287,-500.0,0.00031231,4]
[341162643,1730491544308,-500.0,0.00031231,4]
[341162644,1730491544332,-500.0,0.00031231,4]
[341162645,1730491544359,-754.47,0.00031231,4]
[341162646,1730491544381,-500.0,0.00031231,4]
[341162647,1730491544404,-500.0,0.00031231,4]
[341162648,1730491544426,-500.0,0.00031231,4]
[341162649,1730491544449,-500.0,0.00031231,4]
[341162650,1730491544481,-803.78,0.00031231,4]
[341162651,1730491544503,-500.0,0.00031231,4]
[341162652,1730491544524,-500.0,0.00031232,4]
[341162653,1730491544546,-818.44,0.00031232,4]
[341162654,1730491544566,-500.0,0.00031232,4]
[341162655,1730491544589,-500.0,0.00031232,4]
[341162656,1730491544611,-192.82079727,0.00031232,7]
[341162657,1730491544634,-814.67451374,0.00031504,2]
[341162658,1730491544658,-1166.84,0.00031505,3]
[341162659,1730491544681,-500.0,0.00031505,4]
[341162660,1730491544704,-500.0,0.00031505,4]
[341162661,1730491544728,-500.0,0.00031505,4]
[341162662,1730491544751,-500.0,0.00031505,4]
[341162663,1730491544775,-500.0,0.00031505,4]
[341162664,1730491544801,-754.47,0.00031505,4]
[341162665,1730491544823,-500.0,0.00031505,4]
[341162666,1730491544844,-500.0,0.00031505,4]
[341162667,1730491544866,-500.0,0.00031505,4]
[341162668,1730491544889,-512.37576811,0.00031505,4]
[341162669,1730491544916,-803.78,0.00031505,4]
[341162670,1730491544943,-500.0,0.00031505,4]
[341162671,1730491545089,-500.0,0.00031506,4]
[341162672,1730491545112,-818.44,0.00031506,4]
[341162673,1730491545134,-500.0,0.00031506,4]
[341162674,1730491545157,-500.0,0.00031506,4]
[341162675,1730491545181,-1166.84,0.00031779,3]
[341162676,1730491545204,-500.0,0.00031779,4]
[341162677,1730491545229,-500.0,0.00031779,4]
[341162678,1730491545251,-500.0,0.00031779,4]
[341162679,1730491545273,-500.0,0.00031779,4]
[341162680,1730491545298,-500.0,0.00031779,4]
[341162681,1730491545322,-754.47,0.00031779,4]
[341162682,1730491545344,-500.0,0.00031779,4]
[341162683,1730491545368,-500.0,0.00031779,4]
[341162684,1730491545392,-500.0,0.00031779,4]
[341162685,1730491545419,-803.78,0.00031779,4]
[341162686,1730491545444,-500.0,0.00031779,4]
[341162687,1730491545467,-500.0,0.0003178,4]
[341162688,1730491545489,-818.44,0.0003178,4]
[341162689,1730491545513,-500.0,0.0003178,4]
[341162690,1730491545537,-500.0,0.0003178,4]
[341162691,1730491545563,-1166.84,0.00032053,3]
[341162692,1730491545587,-500.0,0.00032053,4]
[341162693,1730491545611,-500.0,0.00032053,4]
[341162694,1730491545636,-500.0,0.00032053,4]
[341162695,1730491545659,-500.0,0.00032053,4]
[341162696,1730491545685,-500.0,0.00032053,4]
[341162697,1730491545711,-754.47,0.00032053,4]
[341162698,1730491545734,-500.0,0.00032053,4]
[341162699,1730491545757,-500.0,0.00032053,4]
[341162700,1730491545781,-500.0,0.00032053,4]
[341162701,1730491545806,-803.78,0.00032053,4]
[341162702,1730491545831,-500.0,0.00032053,4]
[341162703,1730491545855,-500.0,0.00032054,4]
[341162704,1730491545879,-818.44,0.00032054,4]
[341162705,1730491545901,-500.0,0.00032054,4]
[341162706,1730491545924,-500.0,0.00032054,4]
[341162707,1730491545947,-500.0,0.00032113,5]
[341162708,1730491545974,-1166.84,0.00032327,3]
[341162709,1730491545997,-500.0,0.00032327,4]
[341162710,1730491546021,-500.0,0.00032327,4]
[341162711,1730491546044,-500.0,0.00032327,4]
[341162712,1730491546067,-500.0,0.00032327,4]
[341162713,1730491546093,-508.83553273,0.00032327,4]
[341162714,1730491546117,-754.47,0.00032327,4]
[341162715,1730491546140,-500.0,0.00032327,4]
[341162716,1730491546164,-500.0,0.00032327,4]
[341162717,1730491546188,-500.0,0.00032327,4]
[341162718,1730491546214,-803.78,0.00032327,4]
[341162719,1730491546240,-500.0,0.00032327,4]
[341162720,1730491546263,-444.23172617,0.00032328,4]
[341162721,1730491546286,-818.44,0.00032328,4]
[341162722,1730491546308,-500.0,0.00032328,4]
[341162723,1730491546331,-500.0,0.00032328,4]
[341162724,1730491546357,-1166.84,0.00032601,3]
[341162725,1730491546381,-500.0,0.00032601,4]
[341162726,1730491546403,-500.0,0.00032601,4]
[341162727,1730491546426,-500.0,0.00032601,4]
[341162728,1730491546448,-320.57351819,0.00032601,4]
[341162729,1730491546471,-754.47,0.00032601,4]
[341162730,1730491546493,-500.0,0.00032601,4]
[341162731,1730491546514,-500.0,0.00032601,4]
[341162732,1730491546537,-500.0,0.00032601,4]
[341162733,1730491546562,-803.78,0.00032601,4]
[341162734,1730491546584,-818.44,0.00032602,4]
[341162735,1730491546605,-500.0,0.00032602,4]
[341162736,1730491546629,-500.0,0.00032602,4]
[341162737,1730491546651,-151.88414461,0.00032766,2]
[341162738,1730491546677,-1166.84,0.00032875,3]
[341162739,1730491546699,-613.66996755,0.00032875,4]
[341162740,1730491546723,-500.0,0.00032875,4]
[341162741,1730491546746,-500.0,0.00032875,4]
[341162742,1730491546769,-738.60217375,0.00032875,4]
[341162743,1730491636111,-729.28,0.00030683,3]
[341162744,1730491636133,-500.0,0.00030683,4]
[341162745,1730491636154,-485.1723526,0.00030683,4]
[341162746,1730491636175,-729.28,0.00030957,3]
[341162747,1730491636199,-500.0,0.00030957,4]
[341162748,1730491636220,-729.28,0.00031231,3]
[341162749,1730491636240,-500.0,0.00031231,4]
[341162750,1730491636264,-729.28,0.00031505,3]
[341162751,1730491636284,-500.0,0.00031505,4]
[341162752,1730491636307,-729.28,0.00031779,3]
[341162753,1730491636328,-500.0,0.00031779,4]
[341162754,1730491636350,-729.28,0.00032053,3]
[341162755,1730491636372,-500.0,0.00032053,4]
[341162756,1730491636393,-729.28,0.00032327,3]
[341162757,1730491636414,-500.0,0.00032327,4]
[341162758,1730491636436,-500.0,0.00032601,4]
[341162759,1730491636459,-729.28,0.00032601,3]
[341162760,1730491636481,-500.0,0.00032601,4]
[341162761,1730491636505,-15.86782625,0.00032875,4]
[341162762,1730491636530,-188.24,0.00032875,4]
[341162763,1730491636555,-500.0,0.00032875,4]